bitfinex/quotes_SOLUSD_20241225
["timestamp","ask_amount","ask_price","bid_price","bid_amount"]
[1735142062852,8.29348868,198.33,198.25,8.29348868]
[1735142063018,23.776884,198.32,198.25,8.29348868]
[1735142064254,23.776884,198.3,198.23,20.0]
[1735142064425,23.776884,198.3,198.23,28.29348868]
[1735142066343,23.776884,198.28,198.2,21.616]
[1735142066542,23.776884,198.28,198.2,29.90948868]
[1735142067546,23.776884,198.28,198.2,1.616]
[1735142067745,23.776884,198.28,198.2,9.90948868]
[1735142068331,23.776884,198.28,198.22,8.29348868]
[1735142069543,23.776884,198.28,198.2,9.90948868]
[1735142070542,23.776884,198.28,198.22,8.29348868]
[1735142070724,8.29348868,198.29,198.22,8.29348868]
[1735142072043,23.776884,198.32,198.24,8.29348868]
[1735142073148,8.29348868,198.31,198.24,8.29348868]
[1735142073859,12.6054,198.33,198.24,8.29348868]
[1735142074033,8.29348868,198.32,198.24,8.29348868]
[1735142076436,20.62871803,198.35,198.24,8.29348868]
[1735142076749,8.29348868,198.35,198.26,8.29348868]
[1735142077456,8.29348868,198.35,198.28,8.29348868]
[1735142077658,8.29348868,198.37,198.28,8.29348868]
[1735142077836,23.776884,198.36,198.28,8.29348868]
[1735142079155,8.29348868,198.35,198.28,8.29348868]
[1735142079465,8.29348868,198.35,198.27,1.6182]
[1735142082054,8.29348868,198.35,198.28,8.29348868]
[1735142082958,23.776884,198.34,198.27,1.6182]
[1735142083168,8.29348868,198.33,198.27,1.6182]
[1735142085955,12.6031,198.37,198.27,9.91168868]
[1735142086139,8.29348868,198.35,198.29,8.29348868]
[1735142086334,8.29348868,198.35,198.27,9.91168868]
[1735142087662,23.776884,198.34,198.27,1.6182]
[1735142087964,8.29348868,198.33,198.27,1.6182]
[1735142096067,36.382684,198.32,198.22,6.1041]
[1735142096369,8.29348868,198.28,198.22,6.1041]
[1735142099668,8.29348868,198.3,198.22,14.39758868]
[1735142100087,23.776884,198.29,198.22,14.39758868]
[1735142102270,8.29348868,198.32,198.24,8.29348868]
[1735142102577,32.07037268,198.33,198.25,8.29348868]
[1735142103265,8.29348868,198.32,198.25,8.29348868]
[1735142103970,23.776884,198.29,198.22,6.1041]
[1735142107482,8.29348868,198.27,198.19,20.0]
[1735142107671,23.776884,198.26,198.21,20.0]
[1735142111679,23.776884,198.26,198.2,8.29348868]
[1735142114486,8.29348868,198.25,198.17,20.0]
[1735142114674,23.776884,198.22,198.16,1.6471]
[1735142114987,8.29348868,198.19,198.14,7.93527235]
[1735142115192,23.776884,198.18,198.14,7.93527235]
[1735142115595,23.776884,198.21,198.14,7.93527235]
[1735142115892,23.776884,198.21,198.13,8.29348868]
[1735142118100,23.776884,198.19,198.13,8.29348868]
[1735142118270,23.776884,198.19,198.11,1.6471]
[1735142118470,23.776884,198.19,198.11,9.94058868]
[1735142124597,23.776884,198.19,198.11,8.29348868]
[1735142125196,12.6147,198.18,198.07,1.6227]
[1735142125400,23.776884,198.17,198.1,8.29348868]
[1735142127079,23.776884,198.17,198.12,8.29348868]
[1735142127289,7.9352,198.23,198.14,8.29348868]
[1735142127488,8.29348868,198.22,198.15,8.29348868]
[1735142127691,16.22868868,198.23,198.16,8.29348868]
[1735142127994,16.22868868,198.23,198.15,8.29348868]
[1735142128175,7.9352,198.23,198.16,8.29348868]
[1735142129107,23.776884,198.22,198.16,8.29348868]
[1735142129404,23.776884,198.22,198.15,8.29348868]
[1735142130085,32.07037268,198.22,198.14,8.29348868]
[1735142131200,32.07037268,198.22,198.16,8.29348868]
[1735142131415,1.6281,198.23,198.18,8.29348868]
[1735142132686,23.776884,198.22,198.18,8.29348868]
[1735142139409,23.776884,198.22,198.11,26.1181]
[1735142139713,23.776884,198.22,198.14,8.29348868]
[1735142140411,23.776884,198.22,198.16,8.29348868]
[1735142142014,23.776884,198.23,198.16,8.29348868]
[1735142146319,32.07037268,198.23,198.16,8.29348868]
[1735142146828,23.776884,198.23,198.16,8.29348868]
[1735142150919,23.776884,198.24,198.18,8.29348868]
[1735142151126,20.90258868,198.27,198.18,8.29348868]
[1735142151618,23.776884,198.26,198.18,8.29348868]
[1735142151803,20.90258868,198.27,198.18,8.29348868]
[1735142153102,23.776884,198.26,198.18,8.29348868]
[1735142157202,12.6072,198.3,198.22,8.29348868]
[1735142158733,23.776884,198.29,198.22,8.29348868]
[1735142160426,32.07037268,198.29,198.22,8.29348868]
[1735142160630,32.07037268,198.26,198.18,20.0]
[1735142160831,32.07037268,198.26,198.18,28.29348868]
[1735142161321,8.29348868,198.25,198.18,20.0]
[1735142161522,23.776884,198.21,198.14,1.5333]
[1735142161721,23.776884,198.21,198.14,9.82678868]
[1735142162037,32.07037268,198.21,198.14,1.5333]
[1735142162716,32.07037268,198.21,198.14,9.82678868]
[1735142162920,23.776884,198.21,198.15,8.29348868]
[1735142164634,8.29348868,198.24,198.16,8.29348868]
[1735142164936,23.776884,198.23,198.17,8.29348868]
[1735142165123,23.776884,198.24,198.17,8.29348868]
[1735142169240,23.776884,198.24,198.14,1.5333]
[1735142169407,8.29348868,198.23,198.16,8.29348868]
[1735142169612,23.776884,198.22,198.16,8.29348868]
[1735142171438,23.776884,198.23,198.16,8.29348868]
[1735142174127,23.776884,198.21,198.16,8.29348868]
[1735142178029,23.776884,198.21,198.14,9.82678868]
[1735142181239,23.776884,198.21,198.14,8.29348868]
[1735142181449,12.6122,198.22,198.1,1.6579]
[1735142181450,32.07037268,198.19,198.1,1.6579]
[1735142181625,32.07037268,198.19,198.11,8.29348868]
[1735142183944,23.776884,198.17,198.11,8.29348868]
[1735142191342,20.0,198.21,198.1,1.6579]
[1735142191529,12.6109,198.24,198.15,8.29348868]
[1735142191530,20.90438868,198.24,198.15,8.29348868]
[1735142191729,20.90438868,198.24,198.1,1.6579]
[1735142191730,20.90438868,198.24,198.17,8.29348868]
[1735142191931,12.6109,198.24,198.17,8.29348868]
[1735142192133,12.6109,198.24,198.18,8.29348868]
[1735142193757,23.776884,198.23,198.18,8.29348868]
[1735142194426,23.776884,198.23,198.19,8.29348868]
[1735142194632,8.0571,198.26,198.19,8.29348868]
[1735142194955,1.6397,198.26,198.19,8.29348868]
[1735142196061,23.776884,198.25,198.19,8.29348868]
[1735142196541,23.776884,198.25,198.18,8.29348868]
[1735142203762,8.29348868,198.24,198.15,20.0]
[1735142203972,23.776884,198.23,198.16,8.29348868]
[1735142204148,23.776884,198.23,198.13,20.0]
[1735142204348,23.776884,198.21,198.15,8.29348868]
[1735142205081,23.776884,198.21,198.17,8.29348868]
[1735142205243,23.776884,198.21,198.11,0.75691154]
[1735142205652,23.776884,198.21,198.16,8.29348868]
[1735142206357,23.776884,198.21,198.1,1.6579]
[1735142206545,23.776884,198.21,198.13,8.29348868]
[1735142207247,32.07037268,198.21,198.13,8.29348868]
[1735142208168,23.776884,198.21,198.14,8.29348868]
[1735142208367,23.776884,198.21,198.15,8.29348868]
[1735142208584,23.776884,198.21,198.16,8.29348868]
[1735142208754,23.776884,198.21,198.17,8.29348868]
[1735142209367,23.776884,198.21,198.16,8.29348868]
[1735142210794,23.776884,198.22,198.15,8.29348868]
[1735142214575,23.776884,198.24,198.17,8.29348868]
[1735142214878,1.6397,198.26,198.19,8.29348868]
[1735142216262,23.776884,198.25,198.19,8.29348868]
[1735142223787,23.776884,198.25,198.12,33.17395472]
[1735142223788,23.776884,198.25,198.17,8.29348868]
[1735142223989,32.07037268,198.25,198.17,8.29348868]
[1735142224177,32.07037268,198.23,198.11,7.93527235]
[1735142224381,32.07037268,198.23,198.15,8.29348868]
[1735142226789,20.90268868,198.27,198.19,8.29348868]
[1735142227194,12.6092,198.27,198.21,8.29348868]
[1735142227392,26.19507716,198.28,198.23,8.29348868]
[1735142230108,26.19507716,198.28,198.21,1.5999]
[1735142230109,26.19507716,198.28,198.26,8.29348868]
[1735142230285,8.29348868,198.34,198.26,8.29348868]
[1735142230804,8.29348868,198.32,198.25,8.29348868]
[1735142231395,23.776884,198.31,198.25,8.29348868]
[1735142231571,32.07037268,198.31,198.23,8.29348868]
[1735142236387,8.29348868,198.3,198.23,8.29348868]
[1735142236586,23.776884,198.29,198.23,8.29348868]
[1735142237593,8.29348868,198.34,198.26,8.29348868]
[1735142239099,23.776884,198.33,198.26,8.29348868]
[1735142239290,23.776884,198.33,198.23,0.7565169]
[1735142239291,32.07037268,198.33,198.25,8.29348868]
[1735142239874,8.29348868,198.32,198.25,8.29348868]
[1735142240394,8.29348868,198.31,198.24,8.29348868]
[1735142240575,8.29348868,198.31,198.23,8.29348868]
[1735142240893,8.29348868,198.29,198.22,8.29348868]
[1735142241475,23.776884,198.29,198.23,8.29348868]
[1735142242586,23.776884,198.29,198.24,8.29348868]
[1735142242885,23.776884,198.3,198.24,8.29348868]
[1735142243079,12.6035,198.36,198.27,8.29348868]
[1735142243285,20.89698868,198.36,198.28,8.29348868]
[1735142244094,8.29348868,198.35,198.28,8.29348868]
[1735142245206,23.776884,198.34,198.28,8.29348868]
[1735142246801,23.776884,198.35,198.28,8.29348868]
[1735142254709,23.776884,198.35,198.24,20.0]
[1735142254910,23.776884,198.35,198.27,8.29348868]
[1735142255705,23.776884,198.33,198.21,7.6631]
[1735142255902,8.29348868,198.32,198.24,8.29348868]
[1735142256104,23.776884,198.31,198.24,8.29348868]
[1735142257008,23.776884,198.36,198.3,8.29348868]
[1735142258091,23.776884,198.36,198.28,8.29348868]
[1735142259415,23.776884,198.36,198.3,8.29348868]
[1735142272221,23.776884,198.36,198.28,8.29348868]
[1735142272398,12.6039,198.35,198.28,8.29348868]
[1735142274415,12.6039,198.35,198.27,1.6464]
[1735142275597,12.6052,198.33,198.27,1.6464]
[1735142275804,32.07037268,198.32,198.27,1.6464]
[1735142276525,32.07037268,198.32,198.23,8.29348868]
[1735142276928,12.6065,198.31,198.23,8.29348868]
[1735142277135,23.776884,198.3,198.23,8.29348868]
[1735142277806,32.07037268,198.3,198.23,8.29348868]
[1735142278002,23.776884,198.3,198.24,8.29348868]
[1735142278224,12.6065,198.31,198.25,8.29348868]
[1735142279922,8.293489,198.34,198.25,8.29348868]
[1735142280116,32.07037268,198.33,198.25,8.29348868]
[1735142280315,8.29348868,198.33,198.25,8.29348868]
[1735142282026,8.29348868,198.31,198.23,8.29348868]
[1735142284907,8.29348868,198.31,198.22,1.5334]
[1735142285112,8.29348868,198.31,198.24,8.29348868]
[1735142286721,36.383984,198.3,198.24,8.29348868]
[1735142286925,36.383984,198.3,198.22,9.82688868]
[1735142288422,44.67747268,198.3,198.22,9.82688868]
[1735142288936,36.383984,198.3,198.23,8.29348868]
[1735142290031,36.383984,198.3,198.25,8.29348868]
[1735142290032,12.6071,198.3,198.25,8.29348868]
[1735142290250,12.6054,198.33,198.27,8.29348868]
[1735142297945,8.29348868,198.33,198.25,8.29348868]
[1735142299080,20.89868868,198.33,198.25,8.29348868]
[1735142301491,23.776884,198.3,198.19,7.93527235]
[1735142301674,8.29348868,198.29,198.21,8.29348868]
[1735142302815,20.90128868,198.29,198.21,8.29348868]
[1735142303457,20.84068446,198.29,198.22,8.29348868]
[1735142303658,20.90128868,198.29,198.22,8.29348868]
[1735142306690,12.6078,198.29,198.22,8.29348868]
[1735142306983,20.90128868,198.29,198.22,8.29348868]
[1735142307201,8.29348868,198.28,198.21,8.29348868]
[1735142307368,44.67937268,198.27,198.17,1.6277]
[1735142307570,44.67937268,198.27,198.18,8.29348868]
[1735142307571,32.07037268,198.25,198.18,8.29348868]
[1735142307967,8.29348868,198.24,198.17,8.29348868]
[1735142308494,23.776884,198.23,198.16,8.29348868]
[1735142308678,8.29348868,198.22,198.15,8.29348868]
[1735142309191,23.776884,198.21,198.14,8.29348868]
[1735142309506,32.07037268,198.21,198.13,8.29348868]
[1735142309865,8.29348868,198.2,198.13,8.29348868]
[1735142310474,20.90698868,198.2,198.13,8.29348868]
[1735142311398,20.90698868,198.2,198.12,8.29348868]
[1735142311566,12.6135,198.2,198.14,8.29348868]
[1735142312480,20.90698868,198.2,198.13,8.29348868]
[1735142315210,12.6135,198.2,198.13,8.29348868]
[1735142316503,12.6135,198.2,198.14,8.29348868]
[1735142317006,12.6135,198.2,198.15,8.29348868]
[1735142317840,12.6135,198.2,198.16,8.29348868]
[1735142318214,23.776884,198.19,198.15,8.29348868]
[1735142321314,23.776884,198.19,198.13,8.29348868]
[1735142322085,23.776884,198.17,198.13,8.29348868]
[1735142322889,23.776884,198.17,198.07,6.33714615]
[1735142323228,23.776884,198.17,198.1,8.29348868]
[1735142326035,23.776884,198.17,198.13,8.29348868]
[1735142328400,23.776884,198.17,198.07,7.0941812]
[1735142328401,12.6129,198.21,198.16,8.29348868]
[1735142329314,12.6129,198.21,198.13,20.0]
[1735142329626,23.776884,198.2,198.16,8.29348868]
[1735142334221,23.776884,198.2,198.08,6.0117]
[1735142334222,23.776884,198.2,198.14,8.29348868]
[1735142334726,23.776884,198.2,198.12,8.29348868]
[1735142335300,23.776884,198.18,198.12,8.29348868]
[1735142336110,23.776884,198.18,198.13,8.29348868]
[1735142341425,23.776884,198.18,198.12,8.29348868]
[1735142342115,23.776884,198.18,198.14,8.29348868]
[1735142343915,23.776884,198.2,198.14,8.29348868]
[1735142344147,23.776884,198.21,198.14,8.29348868]
[1735142344456,23.776884,198.21,198.15,8.29348868]
[1735142345860,32.07037268,198.21,198.14,8.29348868]
[1735142347332,23.776884,198.21,198.13,8.29348868]
[1735142347533,32.07037268,198.21,198.13,8.29348868]
[1735142347832,32.07037268,198.21,198.14,8.29348868]
[1735142348333,23.776884,198.21,198.14,8.29348868]
[1735142348526,7.9358,198.24,198.16,8.29348868]
[1735142348727,7.9358,198.24,198.17,8.29348868]
[1735142349124,7.9358,198.24,198.18,8.29348868]
[1735142349644,7.9358,198.24,198.17,8.29348868]
[1735142350020,23.776884,198.23,198.17,8.29348868]
[1735142353244,32.07037268,198.19,198.07,14.2724185]
[1735142353464,23.776884,198.17,198.1,8.29348868]
[1735142353933,23.776884,198.17,198.11,8.29348868]
[1735142354763,23.776884,198.17,198.12,8.29348868]
[1735142355065,23.776884,198.18,198.12,8.29348868]
[1735142356553,23.776884,198.16,198.1,8.29348868]
[1735142358266,23.776884,198.16,198.11,8.29348868]
[1735142358856,23.776884,198.16,198.07,4.69244615]
[1735142359052,23.776884,198.16,198.05,7.93527235]
[1735142359053,23.776884,198.16,198.1,8.29348868]
[1735142370464,23.776884,198.16,198.12,8.29348868]
[1735142371869,23.776884,198.16,198.11,8.29348868]
[1735142372752,23.776884,198.16,198.12,8.29348868]
[1735142373057,6.46,198.22,198.15,8.29348868]
[1735142373265,6.46,198.22,198.18,8.29348868]
[1735142373654,6.46,198.22,198.19,8.29348868]
[1735142373857,6.46,198.22,198.18,8.29348868]
[1735142374571,23.776884,198.21,198.18,8.29348868]
[1735142375069,6.46,198.22,198.18,8.29348868]
[1735142376852,1.605,198.23,198.18,8.29348868]
[1735142377167,14.75348868,198.27,198.2,8.29348868]
[1735142377362,6.46,198.27,198.21,8.29348868]
[1735142377889,6.46,198.27,198.23,8.29348868]
[1735142378076,27.08516317,198.28,198.23,8.29348868]
[1735142378767,27.08516317,198.28,198.22,8.29348868]
[1735142379147,23.776884,198.27,198.22,8.29348868]
[1735142381068,27.08516317,198.28,198.22,8.29348868]
[1735142381271,25.48016317,198.28,198.22,8.29348868]
[1735142382356,23.776884,198.29,198.22,8.29348868]
[1735142384877,32.07037268,198.29,198.22,8.29348868]
[1735142386474,23.776884,198.29,198.22,8.29348868]
[1735142386665,23.776884,198.3,198.24,8.29348868]
[1735142386861,23.776884,198.31,198.24,8.29348868]
[1735142387053,12.6036,198.36,198.27,8.29348868]
[1735142387266,20.89708868,198.36,198.29,8.29348868]
[1735142387583,7.7047,198.38,198.3,8.29348868]
[1735142387880,8.29348868,198.38,198.31,8.29348868]
[1735142388259,20.89488868,198.39,198.32,8.29348868]
[1735142388684,12.6014,198.39,198.31,8.29348868]
[1735142388885,20.89488868,198.39,198.31,8.29348868]
[1735142389092,8.29348868,198.38,198.31,8.29348868]
[1735142389692,8.29348868,198.37,198.3,8.29348868]
[1735142391179,8.29348868,198.37,198.27,313.6499]
[1735142391180,32.07037268,198.36,198.27,1.6499]
[1735142391380,23.776884,198.34,198.27,9.94338868]
[1735142391779,32.07037268,198.34,198.27,9.94338868]
[1735142394491,23.776884,198.35,198.28,8.29348868]
[1735142395991,23.776884,198.35,198.29,8.29348868]
[1735142396193,23.776884,198.35,198.28,8.29348868]
[1735142396701,32.07037268,198.38,198.3,8.29348868]
[1735142397695,23.776884,198.38,198.3,8.29348868]
[1735142397907,32.07037268,198.38,198.3,8.29348868]
[1735142402306,23.776884,198.38,198.34,8.29348868]
[1735142402598,23.776884,198.38,198.32,8.29348868]
[1735142405583,37.91629,198.46,198.35,20.0]
[1735142405803,8.29348868,198.43,198.35,20.0]
[1735142406104,8.29348868,198.44,198.35,20.0]
[1735142406313,8.29348868,198.44,198.36,8.29348868]
[1735142406481,37.7908,198.46,198.36,8.29348868]
[1735142406482,8.29348868,198.45,198.36,8.29348868]
[1735142407205,8.29348868,198.45,198.38,8.29348868]
[1735142408486,12.5969,198.46,198.34,1.5839]
[1735142408487,8.29348868,198.43,198.34,1.5839]
[1735142408812,8.29348868,198.41,198.34,1.5839]
[1735142408993,8.29348868,198.39,198.31,28.29348868]
[1735142409190,37.7908,198.46,198.31,8.29348868]
[1735142409511,37.7908,198.46,198.38,8.29348868]
[1735142409512,12.5969,198.46,198.38,8.29348868]
[1735142409683,8.29348868,198.47,198.4,8.29348868]
[1735142410382,8.29348868,198.43,198.37,20.0]
[1735142410804,8.29348868,198.41,198.36,1.5576]
[1735142410990,8.29348868,198.41,198.34,8.29348868]
[1735142411194,23.776884,198.4,198.34,8.29348868]
[1735142411515,32.07037268,198.4,198.35,20.0]
[1735142412100,23.776884,198.4,198.35,20.0]
[1735142412509,23.776884,198.41,198.35,8.29348868]
[1735142412711,6.3648,198.51,198.38,8.29348868]
[1735142413009,8.29348868,198.48,198.4,8.29348868]
[1735142414213,23.776884,198.47,198.4,8.29348868]
[1735142415712,8.29348868,198.51,198.44,8.29348868]
[1735142415908,8.29348868,198.49,198.42,28.29348868]
[1735142416117,8.29348868,198.5,198.43,8.29348868]
[1735142416625,12.5926,198.53,198.43,8.29348868]
[1735142416626,8.29348868,198.51,198.43,8.29348868]
[1735142416792,8.29348868,198.52,198.45,8.29348868]
[1735142416991,8.29348868,198.54,198.46,8.29348868]
[1735142418205,23.776884,198.53,198.46,8.29348868]
[1735142418813,32.07037268,198.53,198.46,8.29348868]
[1735142419108,23.776884,198.53,198.46,8.29348868]
[1735142419509,8.29348868,198.52,198.44,8.29348868]
[1735142419707,23.776884,198.51,198.4,0.75570967]
[1735142419913,8.29348868,198.5,198.39,7.7484]
[1735142420110,8.29348868,198.5,198.42,8.29348868]
[1735142420312,8.29348868,198.5,198.39,7.7484]
[1735142420313,23.776884,198.51,198.44,8.29348868]
[1735142421725,8.29348868,198.52,198.44,8.29348868]
[1735142421934,23.776884,198.53,198.46,8.29348868]
[1735142428244,23.776884,198.53,198.41,0.75564382]
[1735142428421,23.776884,198.53,198.47,8.29348868]
[1735142429251,7.9816,198.6,198.47,8.29348868]
[1735142429408,12.5882,198.6,198.51,8.29348868]
[1735142429710,8.29348868,198.59,198.51,8.29348868]
[1735142430722,8.29348868,198.6,198.52,8.29348868]
[1735142431240,8.29348868,198.61,198.53,8.29348868]
[1735142431537,8.29348868,198.61,198.54,8.29348868]
[1735142431724,23.776884,198.6,198.54,8.29348868]
[1735142431914,12.5862,198.63,198.54,8.29348868]
[1735142432108,8.29348868,198.66,198.59,8.29348868]
[1735142432508,8.29348868,198.65,198.57,8.29348868]
[1735142432911,8.29348868,198.65,198.58,8.29348868]
[1735142433328,23.776884,198.64,198.58,8.29348868]
[1735142433836,23.776884,198.64,198.57,8.29348868]
[1735142436716,32.07037268,198.64,198.57,8.29348868]
[1735142436918,23.776884,198.64,198.58,8.29348868]
[1735142437417,23.776884,198.64,198.59,8.29348868]
[1735142437641,23.776884,198.65,198.59,8.29348868]
[1735142437827,8.29348868,198.66,198.59,8.29348868]
[1735142439124,26.1779133,198.68,198.6,8.29348868]
[1735142439330,23.776884,198.67,198.6,8.29348868]
[1735142440237,26.1779133,198.68,198.6,8.29348868]
[1735142440539,7.7706,198.7,198.62,8.29348868]
[1735142440540,8.29348868,198.69,198.62,8.29348868]
[1735142440735,8.29348868,198.7,198.63,8.29348868]
[1735142440933,8.29348868,198.7,198.62,28.29348868]
[1735142441138,8.29348868,198.69,198.62,28.29348868]
[1735142442144,23.776884,198.68,198.62,28.29348868]
[1735142442636,23.776884,198.69,198.62,28.29348868]
[1735142442838,23.776884,198.69,198.63,8.29348868]
[1735142444732,8.29348868,198.69,198.59,7.8231]
[1735142444937,8.29348868,198.66,198.59,7.8231]
[1735142445465,8.29348868,198.66,198.59,16.11658868]
[1735142445746,23.776884,198.7,198.6,8.29348868]
[1735142445938,23.776884,198.66,198.6,8.29348868]
[1735142446343,32.07037268,198.66,198.59,16.11658868]
[1735142446534,32.07037268,198.66,198.59,1.6512]
[1735142446735,8.29348868,198.65,198.59,1.6512]
[1735142447247,32.07037268,198.66,198.59,1.6512]
[1735142448136,23.776884,198.66,198.6,8.29348868]
[1735142449338,8.29348868,198.68,198.61,8.29348868]
[1735142449532,8.29348868,198.67,198.59,1.6512]
[1735142449741,8.29348868,198.67,198.6,8.29348868]
[1735142450054,8.29348868,198.67,198.59,9.94468868]
[1735142450262,8.29348868,198.67,198.6,8.29348868]
[1735142450429,8.29348868,198.68,198.6,8.29348868]
[1735142450629,8.29348868,198.7,198.63,8.29348868]
[1735142450849,23.776884,198.69,198.63,8.29348868]
[1735142451052,23.776884,198.69,198.59,21.6512]
[1735142451352,32.07037268,198.69,198.62,8.29348868]
[1735142453022,23.776884,198.69,198.62,8.29348868]
[1735142453453,8.29348868,198.7,198.63,8.29348868]
[1735142453752,26.97259929,198.73,198.67,8.29348868]
[1735142453956,35.26608797,198.73,198.66,8.29348868]
[1735142454158,26.97259929,198.73,198.66,8.29348868]
[1735142454355,8.29348868,198.74,198.64,20.0]
[1735142454542,8.29348868,198.73,198.66,8.29348868]
[1735142455631,23.776884,198.72,198.66,8.29348868]
[1735142457833,12.5779,198.76,198.67,8.29348868]
[1735142458037,8.29348868,198.75,198.67,8.29348868]
[1735142458456,8.29348868,198.72,198.65,8.29348868]
[1735142460741,20.87268868,198.74,198.65,8.29348868]
[1735142460968,23.776884,198.73,198.65,8.29348868]
[1735142461142,8.29348868,198.74,198.67,8.29348868]
[1735142461461,23.776884,198.73,198.67,8.29348868]
[1735142462565,23.776884,198.73,198.65,8.29348868]
[1735142463970,8.29348868,198.72,198.65,8.29348868]
[1735142466164,23.776884,198.69,198.63,1.5015]
[1735142466470,32.07037268,198.69,198.63,1.5015]
[1735142467473,12.5793,198.74,198.63,9.79498868]
[1735142467766,8.29348868,198.72,198.63,9.79498868]
[1735142468165,23.776884,198.71,198.63,9.79498868]
[1735142470683,32.07037268,198.71,198.64,8.29348868]
[1735142471052,23.776884,198.71,198.65,8.29348868]
[1735142471872,23.776884,198.72,198.65,8.29348868]
[1735142473154,8.29348868,198.7,198.63,9.79498868]
[1735142473356,23.776884,198.67,198.58,1.6442]
[1735142473557,32.07037268,198.65,198.58,1.6442]
[1735142473771,32.07037268,198.63,198.58,1.6442]
[1735142473955,8.29348868,198.63,198.58,1.6442]
[1735142474265,32.07037268,198.65,198.58,1.6442]
[1735142474576,8.29348868,198.64,198.58,1.6442]
[1735142475082,25.1602,198.73,198.58,9.93768868]
[1735142475250,25.1602,198.73,198.61,8.29348868]
[1735142475251,23.776884,198.67,198.61,8.29348868]
[1735142475567,23.776884,198.67,198.58,1.6442]
[1735142475568,8.29348868,198.69,198.62,8.29348868]
[1735142476181,8.29348868,198.7,198.63,8.29348868]
[1735142476473,12.5805,198.72,198.64,8.29348868]
[1735142476474,20.87398868,198.72,198.64,8.29348868]
[1735142476684,20.87398868,198.72,198.65,8.29348868]
[1735142476979,12.5805,198.72,198.65,8.29348868]
[1735142477356,20.87398868,198.72,198.65,8.29348868]
[1735142478578,23.776884,198.71,198.65,8.29348868]
[1735142478755,8.29348868,198.73,198.65,8.29348868]
[1735142479262,20.0,198.7,198.65,8.29348868]
[1735142479678,8.29348868,198.73,198.65,8.29348868]
[1735142479893,23.776884,198.72,198.65,8.29348868]
[1735142480054,12.5785,198.76,198.69,8.29348868]
[1735142480368,18.29348868,198.77,198.67,20.0]
[1735142480571,8.29348868,198.76,198.68,8.29348868]
[1735142480768,8.29348868,198.76,198.67,20.0]
[1735142481174,8.29348868,198.76,198.68,8.29348868]
[1735142481472,8.29348868,198.75,198.67,28.29348868]
[1735142481684,22.5778,198.77,198.65,1.6442]
[1735142481685,8.29348868,198.73,198.65,1.6442]
[1735142481893,23.776884,198.72,198.65,9.93768868]
[1735142482181,23.776884,198.72,198.66,8.29348868]
[1735142482361,23.776884,198.72,198.67,8.29348868]
[1735142482678,23.776884,198.73,198.67,8.29348868]
[1735142483019,23.776884,198.73,198.66,8.29348868]
[1735142483160,32.07037268,198.73,198.66,8.29348868]
[1735142483562,23.776884,198.73,198.66,8.29348868]
[1735142484256,32.07037268,198.73,198.66,8.29348868]
[1735142484781,23.776884,198.73,198.66,8.29348868]
[1735142489472,20.87398868,198.72,198.65,1.6442]
[1735142489803,23.776884,198.71,198.65,1.6442]
[1735142490188,8.29348868,198.7,198.65,1.6442]
[1735142490587,32.07037268,198.69,198.62,8.29348868]
[1735142490782,32.07037268,198.69,198.59,13.81733539]
[1735142490783,23.776884,198.66,198.6,9.82368868]
[1735142491811,23.776884,198.67,198.6,9.82368868]
[1735142492188,23.776884,198.67,198.6,1.5302]
[1735142492498,32.07037268,198.65,198.6,1.5302]
[1735142492802,8.29348868,198.64,198.57,20.0]
[1735142493099,23.776884,198.63,198.56,8.29348868]
[1735142493299,23.776884,198.63,198.57,28.29348868]
[1735142493490,23.776884,198.63,198.58,8.29348868]
[1735142493675,23.776884,198.64,198.58,8.29348868]
[1735142495504,23.776884,198.65,198.58,8.29348868]
[1735142495703,23.776884,198.65,198.59,8.29348868]
[1735142496180,23.776884,198.65,198.61,8.29348868]
[1735142496379,23.776884,198.65,198.6,8.29348868]
[1735142498196,23.776884,198.65,198.61,8.29348868]
[1735142498781,8.29348868,198.69,198.61,8.29348868]
[1735142500186,23.776884,198.68,198.61,8.29348868]
[1735142500803,32.07037268,198.68,198.61,8.29348868]
[1735142501110,32.07037268,198.68,198.55,10.09559917]
[1735142501111,23.776884,198.66,198.59,8.29348868]
[1735142501288,23.776884,198.66,198.6,8.29348868]
[1735142501487,23.776884,198.67,198.61,8.29348868]
[1735142501721,23.776884,198.69,198.63,8.29348868]
[1735142502008,1.5758,198.73,198.59,0.75513139]
[1735142502009,12.5799,198.73,198.65,8.29348868]
[1735142502197,20.87338868,198.73,198.66,8.29348868]
[1735142502399,20.87338868,198.73,198.65,8.29348868]
[1735142503707,23.776884,198.72,198.65,8.29348868]